bitfinex-derivatives/quotes_BTCF0:USTF0_20250313
["timestamp","ask_amount","ask_price","bid_price","bid_amount"]
[1741882271847,0.1236026,80919.0,80918.0,0.0795]
[1741882272243,0.2063633,80921.0,80909.0,0.0618087]
[1741882272440,0.1236148,80911.0,80910.0,0.2609159]
[1741882272634,0.1236148,80911.0,80910.0,0.1373072]
[1741882273048,0.1236148,80911.0,80910.0,0.0755]
[1741882273854,0.1455629,80921.0,80920.0,0.123601]
[1741882274044,0.1854214,80913.0,80910.0,0.0755]
[1741882274344,0.1854214,80913.0,80912.0,0.2472193]
[1741882274542,0.10827644,80914.0,80913.0,0.1236117]
[1741882274743,0.10827644,80914.0,80913.0,0.2005117]
[1741882275442,0.23188664,80914.0,80913.0,0.2783117]
[1741882276045,0.10827644,80914.0,80913.0,0.2783117]
[1741882276242,0.07519704,80914.0,80913.0,0.2783117]
[1741882276549,0.1445629,80917.0,80916.0,0.1236071]
[1741882277543,0.2681685,80917.0,80916.0,0.1236071]
[1741882278542,0.2681685,80917.0,80913.0,0.2165055]
[1741882278743,0.1854114,80916.0,80915.0,0.1564]
[1741882278944,0.2604114,80916.0,80915.0,0.1564]
[1741882279151,0.077,80916.0,80908.0,0.0703]
[1741882279353,0.1236163,80910.0,80909.0,0.1567]
[1741882279655,0.1216163,80910.0,80909.0,0.1567]
[1741882280255,0.1971163,80910.0,80909.0,0.1567]
[1741882280549,0.1981163,80910.0,80909.0,0.1587]
[1741882281355,0.1981163,80910.0,80909.0,0.0795]
[1741882281659,0.1981163,80910.0,80909.0,0.004]
[1741882282655,0.1981163,80910.0,80907.0,0.00012388]
[1741882282851,0.1236301,80901.0,80894.0,0.154]
[1741882283058,0.2659101,80901.0,80894.0,0.154]
[1741882283353,0.2659101,80901.0,80883.0,0.0766]
[1741882283354,0.0618239,80890.0,80866.0,0.14228]
[1741882283549,0.1236591,80882.0,80881.0,0.12551501]
[1741882283747,0.1236591,80882.0,80881.0,0.00185441]
[1741882284253,0.13852444,80882.0,80881.0,0.00185441]
[1741882284555,0.13852444,80882.0,80872.0,0.2030743]
[1741882284556,0.1236729,80873.0,80872.0,0.2030743]
[1741882285073,0.1236729,80873.0,80872.0,0.0794]
[1741882285252,0.076,80874.0,80872.0,0.0794]
[1741882285457,0.076,80874.0,80873.0,0.1236729]
[1741882285659,0.1236694,80876.0,80875.0,0.1236683]
[1741882285960,0.1855039,80876.0,80875.0,0.1236683]
[1741882286355,0.2649039,80876.0,80875.0,0.1236683]
[1741882286861,0.01486534,80882.0,80873.0,0.1409361]
[1741882286862,0.01486534,80882.0,80881.0,0.1236606]
[1741882287058,0.1854901,80885.0,80884.0,0.123653]
[1741882287248,0.1854901,80885.0,80882.0,0.0618291]
[1741882287249,0.1236576,80883.0,80882.0,0.0618291]
[1741882287455,0.1236576,80883.0,80880.0,0.140931]
[1741882287456,0.1236698,80875.0,80874.0,0.0803]
[1741882287654,0.1236866,80864.0,80863.0,0.2473701]
[1741882287856,0.1236866,80864.0,80863.0,0.1236872]
[1741882288555,0.1236912,80861.0,80860.0,0.1985922]
[1741882289157,0.0618448,80863.0,80862.0,0.1236897]
[1741882289354,0.001,80864.0,80862.0,0.1236897]
[1741882289355,0.001,80864.0,80863.0,0.1236882]
[1741882289862,0.1256866,80864.0,80863.0,0.1236882]
[1741882290064,0.14039041,80864.0,80863.0,0.1236882]
[1741882291361,0.13939041,80864.0,80863.0,0.1236882]
[1741882291665,0.01570381,80864.0,80862.0,0.1236897]
[1741882291865,0.1992882,80863.0,80862.0,0.1236882]
[1741882292070,0.01670381,80864.0,80862.0,0.1236882]
[1741882292253,0.14039201,80864.0,80863.0,0.1236882]
[1741882293054,0.01670381,80864.0,80863.0,0.1236882]
[1741882293256,0.002,80864.0,80863.0,0.1236882]
[1741882294761,0.001,80864.0,80863.0,0.1236882]
[1741882294967,9e-08,80872.0,80871.0,0.1236759]
[1741882295263,0.14228,80893.0,80881.0,0.1236606]
[1741882295264,0.00064,80892.0,80881.0,0.1236606]
[1741882295462,0.01465709,80888.0,80881.0,0.1236606]
[1741882295665,0.00936479,80890.0,80881.0,0.1236606]
[1741882295866,0.17995284,80893.0,80892.0,0.1236438]
[1741882296068,0.17995284,80893.0,80892.0,0.27805582]
[1741882296069,0.05864464,80893.0,80892.0,0.27805582]
[1741882296259,0.05864464,80893.0,80892.0,0.1436438]
[1741882296567,0.01652234,80893.0,80892.0,0.1436438]
[1741882296771,0.2140542,80901.0,80900.0,0.1236316]
[1741882297662,0.2140542,80901.0,80900.0,0.13851604]
[1741882298055,0.0051855,80901.0,80900.0,0.13851604]
[1741882298259,0.0051855,80901.0,80900.0,0.1236316]
[1741882298454,0.0051855,80901.0,80897.0,0.0618178]
[1741882298455,0.1288156,80901.0,80897.0,0.01510885]
[1741882298654,0.1236331,80899.0,80898.0,0.0794]
[1741882298962,0.1564,80900.0,80886.0,0.0618247]
[1741882299159,0.1236499,80889.0,80888.0,0.1236425]
[1741882299462,0.1236499,80888.0,80887.0,0.2030515]
[1741882299768,0.2800499,80888.0,80887.0,0.2030515]
[1741882300158,0.1564,80888.0,80887.0,0.2030515]
[1741882300668,0.2800499,80888.0,80887.0,0.2030515]
[1741882301055,0.1574,80888.0,80887.0,0.2030515]
[1741882301260,0.001,80888.0,80887.0,0.2030515]
[1741882301967,0.001,80888.0,80887.0,1.09406849]
[1741882302264,0.1236262,80905.0,80904.0,0.1236214]
[1741882302462,0.1236262,80905.0,80904.0,0.247243]
[1741882302670,0.0618111,80907.0,80906.0,0.1236224]
[1741882303373,0.1236186,80909.0,80908.0,0.1236178]
[1741882303667,0.078,80909.0,80908.0,0.1236178]
[1741882303862,0.2138687,80913.0,80912.0,0.1236133]
[1741882304266,0.3374804,80913.0,80912.0,0.1236133]
[1741882304471,0.0618073,80912.0,80903.0,0.2040132]
[1741882304670,0.1236255,80904.0,80903.0,0.1236262]
[1741882304869,0.156,80912.0,80910.0,0.1236148]
[1741882305071,0.2138687,80913.0,80912.0,0.1236133]
[1741882305472,0.0001855,80915.0,80914.0,0.1236102]
[1741882306470,0.0001855,80915.0,80912.0,0.1605]
[1741882306769,0.1236117,80913.0,80912.0,0.0801]
[1741882307173,0.1236209,80907.0,80906.0,0.1236222]
[1741882307375,0.1236209,80907.0,80905.0,0.0749]
[1741882307564,0.1236331,80899.0,80898.0,0.4103855]
[1741882307768,0.1236331,80899.0,80898.0,0.4089855]
[1741882309267,0.1411841,80899.0,80898.0,0.4089855]
[1741882309477,0.017551,80899.0,80880.0,0.0618306]
[1741882309673,0.017551,80899.0,80884.0,0.1236494]
[1741882309674,0.185485,80885.0,80884.0,0.1236494]
[1741882309868,0.185485,80885.0,80884.0,0.2472993]
[1741882310375,0.0618274,80885.0,80884.0,0.2472993]
[1741882310574,0.00018539,80893.0,80892.0,0.1236438]
[1741882310875,0.12382769,80893.0,80892.0,0.1236438]
[1741882311568,0.00018539,80893.0,80892.0,0.1236438]
[1741882312374,0.12382769,80893.0,80892.0,0.1236438]
[1741882312576,0.00018539,80893.0,80892.0,0.1236438]
[1741882312771,0.12382769,80893.0,80892.0,0.1236438]
[1741882313171,0.12482769,80893.0,80892.0,0.1236438]
[1741882313778,0.00118539,80893.0,80892.0,0.1236438]
[1741882314475,0.13598034,80893.0,80892.0,0.1236438]
[1741882314778,0.01233754,80893.0,80892.0,0.1236438]
[1741882315682,0.13602212,80893.0,80892.0,0.1236438]
[1741882315870,0.01237982,80893.0,80892.0,0.1236438]
[1741882316072,0.01137982,80893.0,80892.0,0.1236438]
[1741882316474,0.00018539,80893.0,80892.0,0.1236438]
[1741882316868,0.00118539,80893.0,80892.0,0.1236438]
[1741882318877,0.00018539,80893.0,80892.0,0.2020438]
[1741882319787,0.12382769,80893.0,80892.0,0.2020438]
[1741882320583,0.13519406,80893.0,80892.0,0.0784]
[1741882320783,0.13519406,80893.0,80892.0,0.2020438]
[1741882321077,0.13519406,80893.0,80876.0,0.00018539]
[1741882321078,0.15567176,80893.0,80876.0,0.00018539]
[1741882321282,0.0618304,80881.0,80876.0,0.00018539]
[1741882321582,0.17827955,80890.0,80876.0,0.00018539]
[1741882321583,0.1236668,80877.0,80876.0,0.00018539]
[1741882321788,0.1351089,80877.0,80876.0,0.00018539]
[1741882322593,0.14929986,80877.0,80876.0,0.00018539]
[1741882323189,0.0114421,80877.0,80876.0,0.12385369]
[1741882323690,0.02541893,80877.0,80876.0,0.12385369]
[1741882323982,0.02541893,80877.0,80876.0,0.28295369]
[1741882324580,0.14908573,80877.0,80876.0,0.28295369]
[1741882324778,0.10291893,80877.0,80876.0,0.28295369]
[1741882324979,0.0889421,80877.0,80876.0,0.28295369]
[1741882325181,0.0114421,80877.0,80876.0,0.28295369]
[1741882325382,0.0114421,80877.0,80876.0,0.37425856]
[1741882325595,0.01442339,80885.0,80876.0,0.37425856]
[1741882325596,0.0788,80885.0,80884.0,0.1236561]
[1741882325781,0.09042515,80885.0,80884.0,0.1236561]
[1741882325985,0.21407965,80885.0,80884.0,0.1236561]
[1741882326990,0.22816598,80885.0,80884.0,0.1236561]
[1741882327192,0.09042515,80885.0,80884.0,0.1236561]
[1741882327490,0.01162515,80885.0,80884.0,0.1236561]
[1741882328491,0.01162515,80885.0,80882.0,0.1577]
[1741882328693,0.08632515,80884.0,80882.0,0.2813576]
[1741882328991,0.0113714,80883.0,80882.0,0.2813591]
[1741882329188,0.00185541,80897.0,80882.0,0.2813591]
[1741882329189,0.1544,80896.0,80882.0,0.2813591]
[1741882329490,0.01137705,80892.0,80891.0,0.1236454]
[1741882330192,0.01137705,80892.0,80891.0,0.2811454]
[1741882330983,0.01126184,80892.0,80891.0,0.2811454]
[1741882331485,0.25586527,80898.0,80891.0,0.7156937]
[1741882331486,0.18116527,80898.0,80891.0,0.7156937]
[1741882331688,0.1571,80923.0,80917.0,0.1236056]
[1741882332289,0.0146013,80922.0,80917.0,0.1236056]
[1741882332490,0.0146013,80922.0,80916.0,0.1558]
[1741882332686,0.0765,80921.0,80920.0,0.123601]
[1741882332885,0.17704889,80924.0,80923.0,0.1235965]
[1741882333195,0.30064379,80924.0,80923.0,0.1235965]
[1741882333391,0.17704889,80924.0,80923.0,0.1235965]
[1741882334091,0.10777799,80924.0,80923.0,0.4135965]
[1741882334289,0.28535655,80935.0,80928.0,0.0617941]
[1741882334590,0.28535655,80935.0,80934.0,0.1235797]
[1741882334800,0.28535655,80935.0,80934.0,0.1835797]
[1741882335186,0.28535655,80935.0,80934.0,0.3389797]
[1741882335387,0.28535655,80935.0,80934.0,0.3532341]
[1741882335585,0.28535655,80935.0,80934.0,0.1978341]
[1741882335894,0.28535655,80935.0,80934.0,0.1235797]
[1741882336087,0.29035655,80935.0,80933.0,0.1554]
[1741882336288,0.2817797,80934.0,80933.0,0.2789812]
[1741882336590,0.123585,80932.0,80931.0,0.123583]
[1741882336892,0.0617907,80933.0,80930.0,0.1235812]
[1741882337101,0.161,80932.0,80931.0,0.1596]
[1741882337396,0.01424155,80934.0,80933.0,0.1235812]
[1741882337602,0.005,80934.0,80933.0,0.1235812]
[1741882338496,0.005,80934.0,80933.0,0.137797]
[1741882338687,0.082,80942.0,80941.0,0.123569]
[1741882339090,0.00018539,80943.0,80941.0,0.123569]
[1741882339289,0.00018539,80943.0,80942.0,0.2831674]
[1741882340585,0.00518539,80943.0,80942.0,0.2831674]
[1741882341691,0.01018539,80943.0,80942.0,0.2831674]
[1741882342303,0.0826,80965.0,80964.0,0.1235339]
[1741882342489,0.2377,80965.0,80964.0,0.1235339]
[1741882342892,0.1551,80965.0,80964.0,0.1235339]
[1741882343292,0.16970383,80965.0,80964.0,0.1235339]
[1741882343797,0.005,80965.0,80964.0,0.1235339]
[1741882344804,0.01,80965.0,80964.0,0.1235339]
[1741882345394,0.0905,80965.0,80964.0,0.1235339]
[1741882347303,0.01,80965.0,80964.0,0.1235339]
[1741882347895,0.1235354,80963.0,80962.0,0.1545]
[1741882348097,0.1235445,80957.0,80956.0,0.00018527]
[1741882348302,0.1235445,80957.0,80930.0,0.1235844]
[1741882348303,0.1235781,80935.0,80930.0,0.1235844]
[1741882348504,0.1235781,80935.0,80934.0,0.12543292]
[1741882348699,0.1654,80936.0,80934.0,0.12543292]
[1741882348895,0.1654,80936.0,80935.0,0.1235781]
[1741882349097,0.1654,80936.0,80935.0,0.2831781]
[1741882349691,0.00018527,80944.0,80935.0,0.1596]
[1741882349897,0.00018527,80944.0,80943.0,0.1235659]
[1741882350204,7e-08,80944.0,80943.0,0.2635659]
[1741882350411,7e-08,80944.0,80943.0,0.2735659]
[1741882350610,7e-08,80944.0,80943.0,0.4361659]
[1741882350904,7e-08,80944.0,80943.0,0.15]
[1741882351098,7e-08,80944.0,80938.0,0.0785]
[1741882351301,0.1235676,80942.0,80941.0,0.1235659]
[1741882351500,0.1575,80943.0,80941.0,0.1235659]
[1741882351700,0.1575,80943.0,80942.0,0.1235674]
[1741882351903,0.1575,80943.0,80942.0,0.2861674]
[1741882352104,0.0803,80943.0,80942.0,0.2861674]
[1741882352810,0.0803,80943.0,80938.0,0.0637862]
[1741882352811,0.1597,80943.0,80938.0,0.002]
[1741882353102,0.1597,80943.0,80942.0,0.1235674]
[1741882353307,0.2832659,80943.0,80942.0,0.1235674]
[1741882353702,0.1597,80943.0,80939.0,0.0799]
[1741882353903,0.123572,80939.0,80938.0,0.002]
[1741882354102,0.13512572,80939.0,80938.0,0.002]
[1741882354309,0.13512572,80939.0,80927.0,0.00018527]
[1741882354497,0.1235888,80928.0,80927.0,0.00018527]
[1741882354810,0.13812107,80928.0,80927.0,0.12377557]
[1741882355109,0.14972821,80928.0,80927.0,0.12377557]
[1741882355405,0.02613941,80928.0,80927.0,0.12377557]
[1741882355607,0.16500714,80928.0,80927.0,0.12377557]
[1741882355811,0.004,80939.0,80938.0,0.1235736]
[1741882356105,0.0183211,80939.0,80938.0,0.1235736]
[1741882356405,0.01560764,80939.0,80938.0,0.1235736]
[1741882356614,0.004,80939.0,80938.0,0.1235736]
[1741882357309,0.0767,80942.0,80940.0,0.1235705]
[1741882357603,7e-08,80944.0,80943.0,0.1235659]
[1741882358209,7e-08,80944.0,80935.0,0.0617888]
[1741882358210,0.1235738,80938.0,80937.0,0.1235724]
[1741882358411,0.1853683,80936.0,80935.0,0.1235768]
[1741882358705,0.1235888,80929.0,80927.0,0.00018527]
[1741882358896,0.1236194,80908.0,80907.0,0.00148]
[1741882359096,0.01139532,80908.0,80904.0,0.0014]
[1741882359310,0.17749532,80907.0,80906.0,0.1236224]
[1741882359506,0.1661,80907.0,80906.0,0.1236224]
[1741882360010,0.2655149,80924.0,80923.0,0.1235965]
[1741882360195,0.123598,80922.0,80921.0,0.061799]
[1741882360402,0.123598,80922.0,80919.0,0.1236018]
[1741882360403,0.1236026,80920.0,80919.0,0.1236018]
[1741882360713,0.13508369,80920.0,80919.0,0.1236018]
[1741882360903,0.14957335,80920.0,80919.0,0.1236018]
[1741882361099,0.1236071,80918.0,80917.0,0.1236047]
[1741882361296,0.13508819,80918.0,80917.0,0.1236047]
[1741882361512,0.08798109,80918.0,80913.0,0.0001854]
[1741882361700,0.1236102,80914.0,80913.0,0.0001854]
[1741882361906,0.13509129,80914.0,80913.0,0.1237971]
[1741882362807,0.01148109,80914.0,80913.0,0.1237971]
[1741882363203,0.13509129,80914.0,80913.0,0.1237971]
[1741882363403,0.01150357,80914.0,80913.0,0.1237971]
[1741882363604,0.13511377,80914.0,80913.0,0.1237971]
[1741882363913,0.13511377,80914.0,80913.0,0.1247971]
[1741882364104,0.01150357,80914.0,80913.0,0.1247971]
[1741882364408,0.01150357,80914.0,80913.0,0.1257971]
[1741882365310,0.0776,80917.0,80913.0,0.1257971]
[1741882365311,0.01157555,80916.0,80913.0,0.063991]
[1741882365608,0.01157555,80915.0,80914.0,0.1236102]
[1741882366508,0.13518425,80915.0,80914.0,0.1236102]
[1741882366708,0.1236102,80914.0,80913.0,0.0021854]
[1741882366906,0.28948575,80914.0,80913.0,0.0021854]
[1741882367110,0.28948575,80914.0,80913.0,0.1257971]
[1741882367306,0.28949574,80914.0,80913.0,0.1257971]
[1741882367515,0.28849574,80914.0,80913.0,0.0011854]
[1741882367706,0.28849574,80914.0,80913.0,0.1247971]
[1741882367904,0.28849574,80914.0,80913.0,0.0011854]
[1741882368414,0.28849574,80914.0,80913.0,0.0021854]
[1741882368907,0.28849574,80914.0,80913.0,0.1257971]
[1741882369311,0.16471536,80914.0,80913.0,0.1257971]
[1741882369500,0.08751536,80914.0,80913.0,0.1257971]
[1741882371715,0.0617962,80926.0,80913.0,0.1257971]
[1741882371716,0.14192,80930.0,80913.0,0.1257971]
[1741882371913,0.1853988,80924.0,80923.0,0.1235918]
[1741882372116,0.19694035,80924.0,80923.0,0.1235918]
[1741882372315,0.27824035,80924.0,80923.0,0.1235918]
[1741882372515,0.35614035,80924.0,80923.0,0.1235918]
[1741882372813,0.17074155,80924.0,80913.0,0.0021854]
[1741882373014,0.1236067,80919.0,80918.0,0.0618006]
[1741882373224,0.15407746,80919.0,80918.0,0.0618006]
[1741882373520,0.31057746,80919.0,80918.0,0.0618006]
[1741882373723,0.18697076,80919.0,80918.0,0.0618006]
[1741882374013,0.16821952,80919.0,80918.0,0.1443006]
[1741882374218,0.01171952,80919.0,80918.0,0.1443006]
[1741882374418,0.01171952,80919.0,80918.0,0.2061041]
[1741882374612,0.32309541,80939.0,80931.0,0.1235842]
[1741882374817,0.2151033,80932.0,80931.0,0.1235842]
[1741882375008,0.21510355,80932.0,80931.0,0.1235842]
[1741882375813,0.21507575,80932.0,80931.0,0.1235842]
[1741882376019,0.09149305,80932.0,80931.0,0.2060842]
[1741882376222,0.22933379,80932.0,80931.0,0.2060842]
[1741882376612,0.23333379,80932.0,80931.0,0.2060842]
[1741882377108,0.11359896,80932.0,80931.0,0.2060842]
[1741882377311,0.09934092,80932.0,80931.0,0.2060842]
[1741882377507,0.01664092,80932.0,80931.0,0.2060842]
[1741882378309,0.01264092,80932.0,80931.0,0.2060842]
[1741882378509,0.01364092,80932.0,80931.0,0.2060842]
[1741882379923,0.01264092,80932.0,80931.0,0.2060842]
[1741882380128,0.01264092,80932.0,80931.0,0.2070842]
[1741882380721,0.01164092,80932.0,80931.0,0.2070842]
[1741882381317,0.01164092,80932.0,80931.0,0.3670842]
[1741882381318,2e-08,80932.0,80931.0,0.3670842]
[1741882381518,0.0758,80944.0,80931.0,0.2525]
[1741882381714,0.1993644,80944.0,80943.0,0.1235659]
[1741882382126,0.21300651,80944.0,80943.0,0.1235659]
[1741882382320,0.21300651,80944.0,80937.0,0.1235742]
[1741882382321,0.08944211,80944.0,80937.0,0.1235742]
[1741882382517,0.1235736,80938.0,80937.0,0.1853604]
[1741882382723,0.061786,80940.0,80936.0,0.1601]
[1741882382928,0.1235751,80937.0,80936.0,0.2059766]
[1741882383122,0.0807,80939.0,80938.0,0.1235736]
[1741882383517,0.0807,80939.0,80936.0,0.1441876]
[1741882383837,0.0001854,80952.0,80951.0,0.1235537]
[1741882384729,0.0001854,80952.0,80951.0,0.13762902]
[1741882386126,0.0001854,80952.0,80951.0,0.1235537]
[1741882386326,0.0051854,80952.0,80951.0,0.1235537]
[1741882386726,0.0091854,80952.0,80951.0,0.1235537]
[1741882389727,0.0091854,80952.0,80949.0,0.1601]
[1741882389936,0.1235629,80945.0,80944.0,0.2654029]
[1741882390236,0.1235599,80949.0,80948.0,0.0617784]
[1741882390627,0.1235599,80949.0,80948.0,0.1439784]
[1741882391338,0.1428771,80951.0,80950.0,0.1235552]
[1741882391637,0.0811,80951.0,80950.0,0.1235552]
[1741882392042,0.0051854,80952.0,80951.0,0.1235537]
[1741882392244,0.0051854,80952.0,80951.0,0.2809537]
[1741882392536,0.0001854,80952.0,80940.0,0.0617845]
[1741882392727,0.1235607,80948.0,80941.0,0.2227]
[1741882392935,0.1235607,80948.0,80947.0,0.1235583]
[1741882393233,0.1235674,80942.0,80941.0,0.204468]
[1741882393537,0.1235766,80936.0,80935.0,0.0001854]
[1741882393734,0.13572335,80936.0,80935.0,0.0001854]
[1741882393926,0.16874737,80936.0,80935.0,0.1237635]
[1741882395031,0.18032855,80936.0,80935.0,0.1237635]
[1741882395533,0.18063622,80936.0,80935.0,0.0001854]
[1741882395934,0.18063622,80936.0,80935.0,0.1237635]
[1741882396327,0.18163622,80936.0,80935.0,0.1237635]
[1741882397142,0.18263622,80936.0,80935.0,0.1237635]
[1741882397528,0.18288234,80936.0,80935.0,0.1237635]
[1741882397741,0.0457131,80936.0,80935.0,0.1237635]
[1741882397939,0.02593961,80936.0,80935.0,0.2828635]
[1741882398742,0.05923197,80936.0,80935.0,0.1237635]
[1741882399133,0.18280857,80936.0,80935.0,0.1237635]
[1741882399341,0.18280857,80936.0,80935.0,0.0001854]
[1741882399537,0.05923197,80936.0,80903.0,0.0751]
[1741882399744,0.1236133,80912.0,80904.0,0.0822]
[1741882400037,0.13597173,80912.0,80911.0,0.12546854]
[1741882400237,0.15527719,80912.0,80911.0,0.00185374]
[1741882400441,0.16685837,80912.0,80911.0,0.12546854]
[1741882400835,0.16668196,80912.0,80911.0,0.1236148]
[1741882401037,0.18030998,80912.0,80911.0,0.1256148]
[1741882401241,0.16118093,80912.0,80911.0,0.1256148]
[1741882401437,0.16118093,80912.0,80911.0,0.1276148]
[1741882401739,0.16118093,80912.0,80911.0,0.2808148]
[1741882402142,0.02393961,80912.0,80911.0,0.2808148]
[1741882402640,0.02554938,80912.0,80911.0,0.2808148]
[1741882402945,0.01158118,80912.0,80911.0,0.2808148]
[1741882403341,0.01171529,80915.0,80912.0,0.0618059]
[1741882403551,0.01171499,80914.0,80913.0,0.2768117]
[1741882404041,0.13532519,80914.0,80913.0,0.2768117]
[1741882404239,0.01171499,80914.0,80913.0,0.2768117]
[1741882404840,0.13532519,80914.0,80913.0,0.2768117]
[1741882405040,0.14895727,80914.0,80913.0,0.0771]
[1741882405234,0.14895727,80914.0,80913.0,0.1236117]
[1741882406043,0.01171499,80914.0,80913.0,0.1236117]
[1741882406343,2e-08,80917.0,80916.0,0.1236071]
[1741882406540,2e-08,80917.0,80916.0,0.2136071]
[1741882406945,0.09241403,80932.0,80916.0,0.2136071]
[1741882406946,2e-08,80923.0,80919.0,0.1236026]
[1741882407542,0.13557292,80920.0,80919.0,0.2752026]
[1741882407944,0.01197192,80920.0,80919.0,0.2752026]
[1741882408147,0.0001854,80920.0,80919.0,0.2752026]
[1741882408346,0.01203707,80920.0,80919.0,0.2752026]
[1741882408547,0.02353426,80920.0,80919.0,0.2752026]
[1741882408749,0.10113426,80920.0,80919.0,0.2752026]
[1741882409444,0.08928259,80920.0,80919.0,0.2752026]
[1741882409747,0.01168259,80920.0,80919.0,0.2752026]
[1741882409949,9e-08,80920.0,80919.0,0.5352026]
[1741882410154,9e-08,80920.0,80919.0,0.5452026]
[1741882410342,2e-08,80923.0,80919.0,0.5452026]
[1741882410343,2e-08,80923.0,80922.0,0.123598]
[1741882410543,0.0617982,80923.0,80919.0,0.1516]
[1741882410846,0.16576195,80922.0,80921.0,0.2721995]
[1741882411151,0.16577664,80922.0,80921.0,0.2721995]
[1741882411548,0.28937464,80922.0,80921.0,0.2721995]
[1741882412546,0.28837464,80922.0,80921.0,0.2721995]
[1741882413147,0.28937464,80922.0,80921.0,0.2721995]
[1741882414252,0.1236102,80915.0,80909.0,0.1403082]
[1741882414560,0.22826871,80914.0,80912.0,0.1236118]
[1741882414753,0.1976102,80914.0,80913.0,0.1237971]
[1741882415056,0.2283939,80914.0,80913.0,0.1237971]
[1741882415252,0.20940144,80914.0,80913.0,0.1237971]
[1741882415842,0.20940144,80914.0,80913.0,0.1257971]
[1741882416457,0.22839794,80914.0,80913.0,0.1257971]
[1741882417052,0.30209794,80914.0,80913.0,0.1257971]
[1741882417252,0.30209794,80914.0,80913.0,0.0021854]
[1741882417458,0.1418,80914.0,80913.0,0.0021854]
[1741882417761,0.2654102,80914.0,80913.0,0.0021854]
[1741882419459,0.2654102,80914.0,80913.0,0.1257971]
[1741882419956,0.0001854,80922.0,80918.0,0.0618005]
[1741882420173,0.1237864,80922.0,80921.0,0.1235995]
[1741882420355,0.2655464,80922.0,80921.0,0.1235995]
[1741882420555,0.0001854,80922.0,80921.0,0.1235995]
[1741882421461,0.14422253,80926.0,80921.0,0.2242]
[1741882421653,0.00915856,80940.0,80931.0,0.1235842]
[1741882421854,0.16022789,80939.0,80938.0,0.1235736]
[1741882422056,0.16022789,80939.0,80938.0,0.1835736]
[1741882422255,0.01374686,80945.0,80942.0,0.1235674]
[1741882422554,0.01374686,80945.0,80942.0,0.2653674]
[1741882422760,0.13731046,80945.0,80942.0,0.2653674]
[1741882422957,0.1235649,80944.0,80942.0,0.2653674]
[1741882423359,0.01347055,80943.0,80942.0,0.2653674]
[1741882423563,0.01647055,80943.0,80942.0,0.2653674]
[1741882423871,0.14003645,80943.0,80942.0,0.2653674]
[1741882424362,0.14003645,80943.0,80942.0,0.1235674]
[1741882424666,0.14303645,80943.0,80942.0,0.1235674]
[1741882425264,0.01947055,80943.0,80942.0,0.1235674]
[1741882425456,0.01947055,80943.0,80942.0,0.2001674]
[1741882426259,0.14303645,80943.0,80942.0,0.2001674]
[1741882426866,0.01947055,80943.0,80942.0,0.2001674]
[1741882427168,0.14303645,80943.0,80942.0,0.2001674]
[1741882427369,0.1620016,80943.0,80942.0,0.2001674]
[1741882428066,0.1620016,80943.0,80942.0,0.0766]
[1741882428262,0.14303645,80943.0,80942.0,0.2001674]
[1741882428460,0.16216691,80943.0,80942.0,0.2001674]
[1741882429058,0.16216691,80943.0,80942.0,0.0766]
[1741882429256,0.1853663,80937.0,80936.0,0.1235753]
[1741882429457,0.1853663,80937.0,80934.0,0.0619737]
[1741882429458,0.1235781,80935.0,80934.0,0.0001854]
[1741882429669,0.154719,80935.0,80934.0,0.0001854]
[1741882430056,0.304619,80935.0,80934.0,0.0001854]
[1741882430256,0.304619,80935.0,80934.0,0.1237651]
[1741882430460,0.31623528,80935.0,80934.0,0.1237651]
[1741882431066,0.31623528,80935.0,80934.0,0.0001854]
[1741882431267,0.34265718,80935.0,80907.0,0.29288869]
[1741882431459,0.0618027,80918.0,80907.0,0.29288869]
[1741882431656,0.1236087,80915.0,80908.0,0.0782]
[1741882431863,0.1547496,80915.0,80908.0,0.0782]
[1741882432369,0.19339293,80915.0,80914.0,0.00585366]
[1741882432561,0.16636588,80915.0,80914.0,0.00585366]
[1741882432963,0.1799181,80915.0,80914.0,0.004]
[1741882433359,0.1799181,80915.0,80914.0,0.1276102]
[1741882433559,0.1799181,80915.0,80914.0,0.2058102]
[1741882434462,0.1799181,80915.0,80914.0,0.0822]
[1741882434662,0.1799181,80915.0,80914.0,0.2058102]
[1741882434865,0.1799181,80915.0,80914.0,0.2038102]
[1741882435365,0.1799181,80915.0,80914.0,0.0802]
[1741882435756,0.0563094,80915.0,80914.0,0.0802]
[1741882435961,0.04275718,80915.0,80914.0,0.2038102]
[1741882436161,0.04324175,80915.0,80914.0,0.2038102]
[1741882436362,0.02377992,80915.0,80914.0,0.2038102]
[1741882436965,0.14738862,80915.0,80914.0,0.2038102]
[1741882437157,0.16686062,80915.0,80914.0,0.2038102]
[1741882437760,0.24286062,80915.0,80914.0,0.2038102]
[1741882438668,0.04325192,80915.0,80914.0,0.2768102]
[1741882439064,0.02377992,80915.0,80914.0,0.2768102]
[1741882439767,0.03091969,80915.0,80914.0,0.2768102]
[1741882440272,7e-08,80915.0,80914.0,0.2768102]
[1741882440572,0.01930341,80918.0,80917.0,0.1236056]
[1741882440761,0.0001854,80923.0,80915.0,0.0618036]
[1741882440762,0.01930341,80922.0,80915.0,0.1347036]
[1741882440957,0.01930341,80922.0,80921.0,0.1235995]
[1741882441164,0.03920132,80922.0,80921.0,0.1235995]
[1741882441364,0.01930341,80922.0,80921.0,0.1235995]
[1741882441874,0.01930341,80922.0,80921.0,0.29366531]
[1741882442376,0.0001854,80923.0,80922.0,0.123598]
[1741882442686,0.04004456,80923.0,80922.0,0.123598]
[1741882442870,0.16364106,80923.0,80922.0,0.276298]
[1741882443064,0.04004456,80923.0,80922.0,0.276298]
[1741882443259,0.03985804,80923.0,80922.0,0.276298]
[1741882443875,0.04185804,80923.0,80922.0,0.276298]
[1741882444278,0.02177412,80923.0,80922.0,0.276298]
[1741882444573,0.18130658,80935.0,80922.0,0.2127]
[1741882444765,0.18130658,80935.0,80934.0,0.1235797]
[1741882444961,0.20135849,80935.0,80934.0,0.1235797]
[1741882445367,0.20135849,80935.0,80934.0,0.14064508]
[1741882445565,0.20143621,80935.0,80934.0,0.21824508]
[1741882445767,0.20243621,80935.0,80934.0,0.21824508]
[1741882445968,0.21756789,80947.0,80940.0,0.1235705]
[1741882446168,0.10290923,80954.0,80953.0,0.1235507]
[1741882446363,0.25187421,80958.0,80957.0,0.1235445]
[1741882446571,0.25187421,80958.0,80957.0,0.1411602]
[1741882448972,0.25487421,80958.0,80957.0,0.1411602]
[1741882449270,0.25787421,80958.0,80957.0,0.1411602]
[1741882449676,0.19670361,80958.0,80957.0,0.2111602]
[1741882449874,0.00185336,80982.0,80962.0,0.1235369]
[1741882450068,0.00185336,80982.0,80981.0,0.1235079]
[1741882450472,0.02194922,80982.0,80981.0,0.1235079]
[1741882450778,0.00185336,80982.0,80981.0,0.2823079]
[1741882451164,0.00185336,80982.0,80981.0,0.30006075]
[1741882451369,0.00185336,80982.0,80981.0,0.2823079]